bitfinex/quotes_ETHUSD_20220220
["timestamp","ask_amount","ask_price","bid_price","bid_amount"]
[1645380522036,0.00232452,2648.7,2648.4,1.452965]
[1645380522237,12.0,2648.8,2648.4,1.452965]
[1645380522238,12.0,2648.8,2648.5,4.95137498]
[1645380522539,0.00232452,2648.7,2648.5,4.4441304]
[1645380522734,0.00232452,2648.7,2648.6,3.5]
[1645380523135,0.00232452,2648.7,2648.6,1.12397252]
[1645380523339,12.0,2648.8,2648.6,1.12397252]
[1645380523536,12.00232448,2648.8,2648.6,1.12397252]
[1645380523838,12.00232448,2648.8,2648.7,0.50731771]
[1645380524037,12.00232448,2648.8,2648.6,1.12397252]
[1645380524538,12.0,2648.8,2648.7,0.50708965]
[1645380524736,12.00232446,2648.8,2648.6,0.50708965]
[1645380525787,12.0,2648.8,2648.6,0.50708965]
[1645380526091,12.00232446,2648.8,2648.6,0.50708965]
[1645380526891,12.0,2648.8,2648.6,0.50708965]
[1645380527087,12.0,2648.8,2648.5,0.9441304]
[1645380527288,12.00232446,2648.8,2648.5,0.9441304]
[1645380528190,12.0,2648.8,2648.5,0.9441304]
[1645380528491,12.00232448,2648.8,2648.5,0.9441304]
[1645380529245,12.00232448,2648.8,2648.6,0.5071583]
[1645380529444,12.0,2648.8,2648.6,0.5071583]
[1645380529645,12.00232448,2648.8,2648.6,0.5071583]
[1645380529846,12.00232448,2648.8,2648.5,0.9441304]
[1645380530844,12.00232448,2648.8,2648.6,0.42135314]
[1645380531245,12.00232448,2648.8,2648.4,0.94572042]
[1645380531455,12.00232448,2648.8,2648.4,0.00148042]
[1645380531849,12.0,2648.8,2648.4,0.00148042]
[1645380532045,0.0023245,2648.7,2648.4,0.00148042]
[1645380532446,1.01914727,2648.6,2648.4,0.00148042]
[1645380533287,0.00232196,2648.6,2648.4,0.00148042]
[1645380535389,0.95695246,2648.7,2648.4,0.00148042]
[1645380535590,0.00232196,2648.6,2648.4,0.00148042]
[1645380536748,0.00232454,2648.6,2648.4,0.00148042]
[1645380537742,9.22125246,2648.7,2648.4,0.00148042]
[1645380537942,4.22125246,2648.7,2648.4,0.00148042]
[1645380538142,0.00232454,2648.6,2648.4,0.00148042]
[1645380539048,4.22125246,2648.7,2648.4,0.00148042]
[1645380539253,0.00232454,2648.6,2648.4,0.00148042]
[1645380540247,4.22125246,2648.7,2648.4,0.00148042]
[1645380540503,0.00232454,2648.6,2648.4,0.00148042]
[1645380541291,4.22125246,2648.7,2648.4,0.00148042]
[1645380541693,0.00232454,2648.6,2648.4,0.00148042]
[1645380542694,4.22125246,2648.7,2648.4,0.00148042]
[1645380542895,0.00232454,2648.6,2648.4,0.00148042]
[1645380543697,4.22125246,2648.7,2648.4,0.00148042]
[1645380544146,0.00232454,2648.6,2648.4,0.00148042]
[1645380544942,4.22125246,2648.7,2648.4,0.00148042]
[1645380545142,0.00232454,2648.6,2648.4,0.00148042]
[1645380546143,3.2643,2648.7,2648.4,0.00148042]
[1645380546544,0.00232454,2648.6,2648.4,0.00148042]
[1645380547347,3.2643,2648.7,2648.4,0.00148042]
[1645380547547,3.97701065,2648.7,2648.4,0.00148042]
[1645380547748,0.00232454,2648.6,2648.4,0.00148042]
[1645380548590,3.2643,2648.7,2648.4,0.00148042]
[1645380548792,0.00232454,2648.6,2648.4,0.00148042]
[1645380549694,3.2643,2648.7,2648.4,0.00148042]
[1645380550092,0.00232454,2648.6,2648.4,0.00148042]
[1645380550496,3.06132885,2648.7,2648.4,0.00148042]
[1645380550893,1.08064705,2648.6,2648.4,0.00148042]
[1645380555052,1.08064705,2648.6,2648.4,0.50986671]
[1645380555388,1.08064705,2648.6,2648.4,0.00148042]
[1645380556289,1.08064705,2648.6,2647.8,0.56546883]
[1645380556489,3.0636533,2648.7,2647.8,0.56546883]
[1645380556696,3.77636395,2648.7,2647.9,0.05436724]
[1645380557091,3.06132885,2648.7,2647.9,0.05436724]
[1645380557395,3.06365318,2648.7,2647.9,0.05436724]
[1645380557890,3.06365318,2648.7,2647.9,0.77073835]
[1645380558291,3.06132885,2648.7,2648.2,1.18107759]
[1645380558490,1.2495,2648.8,2648.7,1.49545869]
[1645380558691,1.07000902,2649.0,2648.7,1.49545869]
[1645380559339,1.78271967,2649.0,2648.7,1.49545869]
[1645380559539,0.71271065,2649.0,2648.7,1.49545869]
[1645380559740,0.0041411,2649.1,2648.7,1.49545869]
[1645380559941,0.71685175,2649.1,2648.7,1.49545869]
[1645380560139,0.71271065,2649.1,2648.7,1.49545869]
[1645380560838,0.83788765,2649.0,2648.7,1.49545869]
[1645380561243,1.5547394,2649.0,2648.7,1.49545869]
[1645380561641,1.5505983,2649.0,2648.7,1.49545869]
[1645380562043,0.83918051,2649.0,2648.7,1.49545869]
[1645380562240,0.84332161,2649.0,2648.7,1.49545869]
[1645380562994,0.84202875,2649.0,2648.7,1.49545869]
[1645380563195,0.84435315,2649.0,2648.7,1.49545869]
[1645380563391,1.5570638,2649.0,2648.7,1.49545869]
[1645380563791,0.84435315,2649.0,2648.7,1.49545869]
[1645380564194,0.84202875,2649.0,2648.7,1.49545869]
[1645380564391,0.84435315,2649.0,2648.7,1.49545869]
[1645380564791,1.5570638,2649.0,2648.7,1.49545869]
[1645380565195,0.0064655,2649.0,2648.7,1.49545869]
[1645380565393,0.0041411,2649.0,2648.7,1.49545869]
[1645380565593,0.0023244,2649.0,2648.7,1.49545869]
[1645380565792,0.0064655,2649.0,2648.7,1.49545869]
[1645380565995,0.0023244,2649.0,2648.7,1.49545869]
[1645380566194,0.0064655,2649.0,2648.7,1.49545869]
[1645380566395,0.0023244,2649.0,2648.7,1.49545869]
[1645380566636,0.0041411,2649.0,2648.7,1.49545869]
[1645380566839,0.0023244,2649.0,2648.7,1.49545869]
[1645380567038,1.068878,2648.9,2648.7,1.49545869]
[1645380568043,1.07120242,2648.9,2648.7,1.49545869]
[1645380568440,0.00232442,2648.9,2648.7,1.49545869]
[1645380569042,0.71271065,2649.0,2648.7,1.49545869]
[1645380569245,0.00232442,2648.9,2648.7,1.49545869]
[1645380570242,1.85297155,2649.0,2648.7,1.49545869]
[1645380570499,0.00232442,2648.9,2648.7,1.49545869]
[1645380570688,0.71503507,2648.9,2648.7,1.49545869]
[1645380571489,0.71271065,2648.9,2648.7,1.49545869]
[1645380571690,0.71503507,2648.9,2648.7,1.49545869]
[1645380571890,0.71271065,2648.8,2648.7,1.49545869]
[1645380572390,0.71271065,2648.8,2648.0,1.20472521]
[1645380572391,0.21644461,2648.3,2648.0,1.20472521]
[1645380572591,0.21644461,2648.3,2648.0,1.2024]
[1645380572792,0.21644461,2648.3,2648.0,1.20472519]
[1645380573191,0.21644461,2648.3,2648.0,1.25907125]
[1645380573792,0.71271065,2648.8,2648.6,0.43288922]
[1645380574146,0.00232419,2648.8,2648.6,0.43288922]
[1645380574544,0.71503484,2648.8,2648.6,0.43288922]
[1645380574944,0.71271065,2648.8,2648.6,0.43288922]
[1645380575347,0.71503511,2648.8,2648.6,0.43288922]
[1645380576148,0.71271065,2648.8,2648.6,0.43288922]
[1645380576348,0.71271065,2648.8,2648.7,0.52366053]
[1645380576547,0.71503511,2648.8,2648.7,0.52366053]
[1645380577357,6.06859546,2648.9,2648.6,0.43288922]
[1645380577555,1.06859546,2648.8,2648.6,0.43288922]
[1645380578893,1.07091992,2648.8,2648.6,0.43288922]
[1645380579892,1.06859546,2648.8,2648.6,0.43288922]
[1645380580093,1.07091992,2648.8,2648.6,0.43288922]
[1645380581092,1.06859546,2648.8,2648.6,0.43288922]
[1645380581392,1.07091992,2648.8,2648.6,0.43288922]
[1645380582238,1.06859546,2648.8,2648.6,0.43288922]
[1645380582440,1.07091992,2648.8,2648.6,0.43288922]
[1645380583444,1.06859546,2648.8,2648.6,0.43288922]
[1645380583742,1.07091992,2648.8,2648.6,0.43288922]
[1645380584543,1.06859546,2648.8,2648.6,0.43288922]
[1645380584742,1.07091992,2648.8,2648.6,0.43288922]
[1645380585392,2.02120078,2648.8,2648.6,0.43288922]
[1645380586991,2.01887632,2648.8,2648.6,0.43288922]
[1645380587192,0.71467411,2648.7,2648.6,0.43288922]
[1645380587396,1.06859546,2648.7,2648.6,0.43288922]
[1645380587891,1.07091992,2648.8,2648.6,0.43288922]
[1645380588093,1.06859546,2648.8,2648.6,0.43288922]
[1645380588497,1.07091989,2648.8,2648.6,0.43288922]
[1645380588693,0.95245837,2648.7,2648.6,0.43288922]
[1645380590341,1.06859546,2648.7,2648.6,0.43288922]
[1645380590540,2.02337826,2648.8,2648.6,0.43288922]
[1645380591942,2.02105383,2648.8,2648.6,0.43288922]
[1645380592144,2.02337829,2648.8,2648.6,0.43288922]
[1645380592343,2.02337829,2648.8,2648.0,1.0549215]
[1645380592542,0.71446219,2648.5,2648.1,0.53435368]
[1645380592996,1.78305765,2648.5,2648.2,0.53435368]
[1645380593192,1.78305765,2648.5,2647.8,3.2769]
[1645380593193,1.06859546,2648.4,2648.0,0.00227329]
[1645380593394,1.06859546,2648.3,2648.0,0.00227329]
[1645380593595,1.06859546,2648.2,2648.0,0.00227329]
[1645380593798,1.7614199,2648.4,2648.3,0.42924713]
[1645380595298,1.04695771,2648.4,2648.3,0.42924713]
[1645380596941,1.04695771,2648.4,2648.3,0.42280049]
[1645380599350,1.76048303,2648.4,2648.3,0.42280049]
[1645380600405,1.04695771,2648.4,2648.3,0.42280049]
[1645380602611,0.95245837,2648.6,2648.3,0.42280049]
[1645380603709,2.08690214,2648.6,2648.0,0.00232499]
[1645380603909,0.71330512,2648.3,2647.8,1.08166881]
[1645380604159,0.71330512,2648.3,2648.0,0.00232504]
[1645380604946,0.71330512,2648.3,2647.8,1.08166881]
[1645380605347,0.71330512,2648.3,2648.0,0.00232491]
[1645380606147,0.71330512,2648.3,2647.8,1.08166881]
[1645380606547,0.71330512,2648.3,2648.0,0.00232491]
[1645380607350,0.71330512,2648.3,2647.6,0.0025708]
[1645380607550,0.71330512,2648.3,2648.0,0.00232491]
[1645380608604,0.71330512,2648.3,2647.6,1.17962055]
[1645380608798,0.71330512,2648.3,2648.0,0.00232491]
[1645380609799,0.71330512,2648.3,2647.6,1.17962055]
[1645380610000,0.71330512,2648.3,2648.0,0.00232491]
[1645380611002,0.71330512,2648.3,2647.6,0.0025708]
[1645380611200,0.71330512,2648.3,2648.0,0.00232491]
[1645380612248,0.71330512,2648.3,2647.6,0.0025708]
[1645380612449,0.71330512,2648.3,2648.0,0.00232491]
[1645380612651,0.0007146,2647.7,2647.6,0.01187182]
[1645380612856,15.19003274,2648.7,2647.6,0.01187182]
[1645380612857,0.71406907,2648.6,2647.9,18.8777]
[1645380613055,0.71414842,2649.2,2648.5,0.3777]
[1645380613255,0.71414842,2649.4,2649.1,0.01207014]
[1645380613456,0.71414842,2649.6,2648.6,0.05434606]
[1645380613654,0.25,2649.7,2648.4,0.71637111]
[1645380613655,0.71414842,2649.2,2648.4,4.3538]
[1645380613852,0.94982877,2648.7,2648.5,1.06854489]
[1645380614055,0.52612328,2648.6,2648.5,4.56854489]
[1645380614256,0.52612328,2648.8,2648.5,1.06854489]
[1645380614450,0.52612328,2648.7,2648.6,1.06854489]
[1645380614655,0.71414842,2649.3,2648.4,1.06854489]
[1645380614851,0.71414842,2649.3,2648.5,1.06854489]
[1645380615053,0.71414842,2649.3,2648.6,1.06854489]
[1645380615253,1.12410945,2649.2,2648.7,1.06854489]
[1645380615499,0.52612328,2649.1,2648.8,1.06854489]
[1645380615697,0.52612328,2649.1,2648.3,3.98788474]
[1645380616002,0.52612328,2649.1,2648.4,1.0680284]
[1645380617497,0.00212839,2648.9,2648.4,1.0680284]
[1645380617996,0.86903343,2649.2,2648.4,1.0680284]
[1645380618200,0.71414842,2649.1,2648.4,1.0680284]
[1645380620447,0.86903343,2649.2,2648.4,1.0680284]
[1645380621051,0.71414842,2649.1,2648.4,1.0680284]
[1645380622353,0.00232123,2649.0,2648.4,1.07035016]
[1645380623402,0.0023212,2649.0,2648.4,1.07035014]
[1645380625699,0.0046424,2649.0,2648.4,1.07267188]
[1645380625903,0.0023212,2649.0,2648.4,0.00232174]
[1645380627051,0.0018278,2649.0,2648.4,0.00182823]
[1645380627953,0.0018278,2649.0,2648.6,1.18255347]
[1645380628151,0.0036556,2649.0,2648.4,0.00365646]
[1645380628352,0.0018278,2649.0,2648.4,0.00182823]
[1645380629153,0.0018278,2649.0,2648.7,1.17515123]
[1645380630700,0.0019958,2649.0,2648.7,1.17515123]
[1645380630902,0.0019958,2649.0,2648.4,0.00199626]
[1645380631700,0.71825548,2649.2,2648.4,0.00088179]
[1645380631900,0.86569377,2649.0,2648.4,0.00088179]
[1645380632102,0.00410706,2648.9,2648.4,0.00088179]
[1645380632703,0.00410706,2648.9,2648.3,1.2317]
[1645380632909,1.185,2649.3,2649.2,0.77924689]
[1645380633104,4.1389,2650.1,2649.2,0.28520948]
[1645380633105,3.37825637,2649.7,2649.2,0.28520948]
[1645380633303,4.49800857,2649.7,2649.2,0.28520948]
[1645380633706,0.1887,2649.5,2649.2,0.28520948]
[1645380633905,1.06398612,2649.3,2649.2,0.28520948]
[1645380635754,1.06398612,2649.3,2649.2,0.23520948]
[1645380638005,1.55869434,2649.3,2649.2,0.23520948]
[1645380642070,0.49470822,2649.3,2649.2,0.23520948]
[1645380642271,0.49470822,2649.6,2649.2,0.23520948]
[1645380642670,0.00215364,2649.4,2649.2,0.23520948]
[1645380643269,0.49686186,2649.4,2649.2,0.23520948]
[1645380643472,0.49470822,2649.4,2649.2,0.23520948]
[1645380643668,0.49686184,2649.4,2649.2,0.23520948]
[1645380644669,0.49470822,2649.4,2649.2,0.23520948]
[1645380644971,0.49686184,2649.4,2649.2,0.23520948]
[1645380645798,0.49470822,2649.4,2649.2,0.23520948]
[1645380646201,0.49685914,2649.4,2649.2,0.23520948]
[1645380647101,0.49470822,2649.4,2649.2,0.23520948]
[1645380647303,0.49468226,2649.3,2649.2,0.23520948]
[1645380648403,0.49468226,2649.4,2649.2,0.23520948]
[1645380648607,0.49468226,2649.3,2649.2,0.23520948]
[1645380649248,0.49468226,2649.4,2649.2,0.23520948]
[1645380649449,0.88287071,2649.5,2649.4,0.99366637]
[1645380650049,0.00406893,2649.6,2649.4,0.99366637]
[1645380650248,2.86086804,2649.7,2649.4,0.99366637]
[1645380650448,2.86493697,2649.7,2649.4,0.99366637]
[1645380650649,2.86086804,2649.7,2649.4,0.99366637]
[1645380650849,2.86215463,2649.7,2649.4,0.99366637]
[1645380651254,1.05544404,2649.6,2649.4,0.99366637]
[1645380652150,6.77071208,2649.6,2649.4,0.99366637]
[1645380652351,6.77199867,2649.6,2649.4,0.99366637]
[1645380652751,1.77199867,2649.6,2649.4,0.99366637]
[1645380653198,1.77071208,2649.6,2649.4,0.24305212]
[1645380653395,0.71526804,2649.5,2649.4,0.24305212]
[1645380656499,2.01354262,2649.6,2649.4,0.24305212]
[1645380656753,1.05544404,2649.6,2649.4,0.24305212]
[1645380656949,2.00947369,2649.6,2649.4,0.24305212]
[1645380657151,1.05776512,2649.6,2649.4,0.24305212]
[1645380657953,1.05544404,2649.6,2649.4,0.24305212]
[1645380658150,0.71841984,2649.5,2649.4,0.24305212]
[1645380658959,21.0,2649.5,2648.6,2.56896628]
[1645380659158,0.71827102,2649.1,2648.6,2.5666443]
[1645380659354,0.71827102,2649.1,2648.6,0.0010365]
[1645380659553,1.63960929,2649.0,2648.6,0.0010365]
[1645380660395,1.11076461,2648.5,2648.1,3.8022443]
[1645380660596,1.11076461,2648.5,2648.3,0.00414649]
[1645380661197,4.1975,2648.9,2648.3,0.00414649]
[1645380661400,4.1975,2648.9,2648.0,0.71771663]
[1645380661797,4.1975,2648.9,2648.3,0.00232173]
[1645380662599,4.1975,2648.9,2648.0,0.71771663]
[1645380662800,0.93331548,2648.8,2648.0,0.71771663]
[1645380662999,0.93331548,2648.8,2648.5,0.00232165]
[1645380663800,0.93331548,2648.8,2648.0,0.71771663]
[1645380664256,0.93331548,2648.8,2648.5,0.00232163]
[1645380665062,0.93331548,2648.8,2648.0,0.71771663]
[1645380665352,0.93331548,2648.8,2648.5,0.00232163]
[1645380666254,0.93331548,2648.8,2648.0,4.21771663]
[1645380666452,0.93331548,2648.8,2648.0,0.71771663]
[1645380666659,0.93331548,2648.8,2648.5,0.00232163]
[1645380667455,0.93331548,2648.8,2648.1,1.71217973]
[1645380667655,0.93331548,2648.8,2648.5,0.00232163]
[1645380668701,0.93331548,2648.8,2648.1,0.9944631]
[1645380668906,0.93331548,2648.8,2648.5,0.00232163]
[1645380669303,0.47369212,2648.7,2648.5,0.00232163]
[1645380669509,0.47369212,2648.6,2648.5,0.00232163]
[1645380669702,0.47369212,2648.8,2648.5,0.00232163]
[1645380670002,0.47369212,2648.8,2648.2,1.1252534]
[1645380670205,0.47369212,2648.8,2648.4,0.00232167]
[1645380670601,0.47369212,2648.8,2648.6,0.00924564]
[1645380670802,0.47369212,2648.8,2648.7,1.1252534]
[1645380671662,1.56880073,2648.8,2648.7,1.1252534]
[1645380673255,1.56880073,2648.8,2648.7,1.12523775]
[1645380673456,1.56880073,2648.8,2648.7,1.12523752]
[1645380673655,1.56880073,2648.8,2648.7,1.12523495]
[1645380673859,1.56880073,2648.8,2648.6,0.01156726]
[1645380674060,1.09510861,2648.8,2648.7,1.12534574]
[1645380674256,1.56884791,2648.8,2648.6,0.01156726]
[1645380674458,0.4737393,2648.7,2648.6,0.01156726]
[1645380674659,0.4737393,2648.7,2648.6,1.13452079]
[1645380675156,0.4737393,2648.7,2648.6,1.1368424]
[1645380675719,0.4737393,2648.7,2648.6,1.12759676]
[1645380675915,0.4737393,2648.7,2648.6,1.12527515]
[1645380676316,0.4737393,2648.8,2648.6,1.12527515]
[1645380676717,0.71827102,2649.2,2648.6,1.12527515]
[1645380676917,0.473706,2649.1,2648.6,1.12527515]
[1645380677221,0.473706,2649.0,2648.6,1.12527515]
[1645380677415,0.473706,2648.9,2648.6,1.12759684]
[1645380677615,0.473706,2648.8,2648.7,0.90423039]
[1645380677816,1.19611451,2649.3,2648.7,2.02950554]
[1645380678019,0.47377902,2649.2,2648.8,1.12516079]
[1645380678218,0.00406893,2649.3,2648.8,4.62516079]
[1645380678416,0.47377902,2649.1,2648.8,4.62516079]
[1645380678617,0.71827102,2649.5,2648.9,1.12516079]
[1645380678618,0.72466086,2649.5,2648.9,1.12516079]
[1645380678818,0.47378713,2649.4,2648.9,1.12516079]
[1645380679662,0.47378713,2649.3,2649.0,1.12516079]
[1645380679863,0.47378713,2649.2,2649.1,1.12516079]
[1645380680063,0.47378713,2649.2,2648.8,1.12495124]
[1645380680259,0.47785606,2649.1,2648.9,1.12495124]
[1645380680460,0.47785606,2649.4,2648.8,1.12495124]
[1645380680660,0.47363071,2649.3,2648.7,0.00924244]
[1645380680860,0.71827102,2649.5,2648.8,1.12489351]
[1645380680861,0.47769964,2649.2,2648.8,1.12489351]
[1645380681063,0.47363071,2649.1,2648.8,1.12489351]
[1645380681364,0.00406893,2649.4,2648.8,1.12489351]
[1645380681365,0.71827102,2649.3,2648.8,1.12489351]
[1645380681564,0.47363071,2649.0,2648.8,1.12489351]
[1645380681764,1.33921494,2649.0,2648.8,1.12489351]
[1645380681965,0.47363071,2648.9,2648.8,1.12489351]
[1645380687562,0.47363071,2648.9,2648.8,1.12630188]
[1645380687758,0.47363071,2648.9,2648.7,0.00924244]
[1645380688157,0.00406893,2649.1,2648.7,0.00924244]
[1645380688158,0.47363071,2648.8,2648.7,0.00924244]
[1645380688555,0.46901208,2649.0,2648.7,1.13551035]
[1645380688755,0.46901208,2649.0,2648.7,0.00924244]
[1645380699211,0.00406893,2649.3,2648.7,0.00924244]
[1645380699904,0.00406893,2649.3,2648.7,0.99733408]
[1645380700107,0.00406893,2649.3,2648.7,0.00924244]
[1645380701109,0.00406893,2649.3,2648.7,0.88666427]
[1645380701308,0.00406893,2649.3,2648.7,0.00924244]
[1645380703162,0.72233995,2649.3,2648.7,0.00924244]
[1645380703361,0.71827102,2649.2,2648.7,0.00924244]
[1645380704157,0.90624287,2649.1,2648.7,0.00924244]
[1645380704861,1.62451389,2649.1,2648.7,0.00377326]
[1645380705062,0.71827102,2648.9,2648.7,7.326e-05]
[1645380705263,2.49880245,2648.8,2648.7,7.326e-05]
[1645380705511,5.0,2648.9,2648.7,7.326e-05]
[1645380705709,0.1887,2648.8,2648.7,0.00932246]
[1645380706307,2.9878,2648.8,2648.7,0.00932246]
[1645380707112,3.70545608,2648.8,2648.7,0.00932246]
[1645380707507,2.9878,2648.8,2648.7,0.00932246]
[1645380708108,3.70540992,2648.8,2648.7,0.00932246]
[1645380708312,3.70541089,2648.8,2648.7,0.00932246]
[1645380708511,3.51671089,2648.8,2648.7,0.00932246]
[1645380708711,3.99830426,2648.8,2648.7,0.00932246]
[1645380709867,3.28069337,2648.8,2648.7,0.00932246]
[1645380710070,3.46939337,2648.8,2648.7,0.00932246]
[1645380711670,3.28069337,2648.8,2648.7,0.00932246]
[1645380712270,3.99794022,2648.8,2648.7,0.00932246]
[1645380712669,3.28069337,2648.8,2648.7,0.00932246]
[1645380712905,3.99794022,2648.8,2648.7,0.00932246]
[1645380713608,3.28069337,2648.8,2648.7,0.00932246]
[1645380713809,3.99794022,2648.8,2648.7,0.00932246]
[1645380714408,3.28069337,2648.8,2648.7,0.00932246]
[1645380714610,3.99777504,2648.8,2648.7,0.00932246]
[1645380714809,3.28069337,2648.8,2648.7,0.00932246]
[1645380718056,3.99741444,2648.8,2648.7,0.00932246]
[1645380718455,3.99741444,2648.8,2648.6,0.00232162]
[1645380718662,3.99741444,2648.8,2648.6,2.162e-05]
[1645380718663,13.13200194,2648.7,2648.6,2.162e-05]
[1645380718860,13.13200194,2648.7,2647.8,0.0025708]
[1645380718861,24.0,2648.6,2647.8,0.0025708]
[1645380719062,5.83308428,2648.8,2646.6,3.42270867]
[1645380719063,29.51,2647.8,2646.6,2.32571474]
[1645380719261,0.71545009,2647.4,2646.7,1.11471847]
[1645380719459,5.0,2647.0,2646.7,0.00258363]
[1645380719656,5.0,2647.0,2646.6,2.32571474]
[1645380719657,1.4712328,2646.9,2646.6,2.32571474]
[1645380719857,0.48159337,2646.8,2645.8,0.71771663]
[1645380720056,2.9152,2646.7,2645.9,1.08416906]
[1645380720261,0.48159337,2646.6,2645.7,0.71771663]
[1645380720511,0.48159337,2646.6,2645.8,1.80188569]
[1645380720709,2.9152,2646.7,2646.2,0.00102275]
[1645380721105,2.9152,2646.7,2646.2,1.08519181]
[1645380721314,2.9152,2646.7,2646.3,1.08158543]
[1645380721508,2.9152,2646.7,2646.4,1.08158543]
[1645380721705,2.9152,2646.7,2646.5,1.08158543]
[1645380721905,2.9152,2646.7,2646.6,1.08158543]
[1645380722708,3.46223637,2646.7,2646.6,1.08158543]
[1645380723307,2.9152,2646.7,2646.6,1.08158543]
[1645380723507,3.46218041,2646.7,2646.6,1.08158543]
[1645380723913,2.9152,2646.7,2646.2,0.88182908]
[1645380724162,2.9152,2646.7,2646.5,0.00230944]
[1645380724757,0.25,2647.2,2646.8,1.71288122]
[1645380724954,2.8075,2647.6,2646.8,1.71288122]
[1645380724955,6.3075,2647.6,2646.8,1.71288122]
[1645380725159,0.54459334,2647.5,2646.8,1.71288122]
[1645380725356,3.5,2647.4,2646.8,1.71288122]
[1645380725554,1.6878933,2647.3,2646.9,0.00230931]
[1645380725759,4.04459334,2647.2,2646.9,0.00230931]
[1645380725960,0.54459334,2647.1,2646.9,0.00230931]
[1645380726359,0.54459334,2647.0,2646.8,1.71288122]
[1645380726563,1.14329996,2647.3,2646.8,1.71288122]
[1645380726759,0.54307465,2647.2,2646.9,0.00230931]
[1645380727363,4.04307465,2647.2,2646.9,0.00230931]
[1645380727562,4.04307465,2647.2,2646.8,1.71288122]
[1645380727563,5.0,2647.0,2646.8,1.71288122]
[1645380727760,0.73197465,2646.9,2646.8,1.71288122]
[1645380728207,4.23197465,2646.9,2646.8,1.71288122]
[1645380728408,5.03338635,2646.9,2646.8,1.71288122]
[1645380729613,4.4903117,2646.9,2646.8,1.71288122]
[1645380730215,5.03214973,2646.9,2646.8,1.71288122]
[1645380730816,6.22104973,2646.9,2646.8,1.71288122]
[1645380731014,6.03214973,2646.9,2646.8,1.71288122]
[1645380732858,5.4903117,2646.9,2646.8,1.71288122]
[1645380733562,6.0311994,2646.9,2646.8,1.71288122]
[1645380733760,5.6792117,2646.9,2646.8,1.71288122]
[1645380733962,2.1792117,2646.9,2646.8,1.71288122]
[1645380734160,5.6792117,2646.9,2646.8,1.71288122]
[1645380734965,6.219953,2646.9,2646.8,1.71288122]
[1645380735163,5.6792117,2646.9,2646.8,1.71288122]
[1645380736006,5.4903117,2646.9,2646.8,1.71288122]
[1645380736210,1.9903117,2646.9,2646.8,1.72277891]
[1645380736406,0.9903117,2646.9,2646.8,1.72277891]
[1645380737009,4.4903117,2646.9,2646.8,1.72277891]
[1645380737408,5.4903117,2646.9,2646.8,1.72277891]
[1645380737608,1.9903117,2646.9,2646.8,1.72277891]
[1645380737807,0.9903117,2646.9,2646.8,1.72277891]
[1645380738008,4.4903117,2646.9,2646.8,1.72277891]
[1645380738208,0.9903117,2646.9,2646.8,1.72277891]
[1645380738408,1.9903117,2646.9,2646.8,1.72277891]
[1645380738610,0.9903117,2646.9,2646.8,1.72277891]
[1645380738809,4.4903117,2646.9,2646.8,1.72277891]
[1645380739010,0.9903117,2646.9,2646.8,1.72277891]
[1645380739259,1.9903117,2646.9,2646.8,1.72277891]
[1645380739460,0.9903117,2646.9,2646.8,1.72277891]
[1645380739857,5.4903117,2646.9,2646.8,1.72277891]
[1645380740260,6.0,2646.8,2646.7,0.00211099]
[1645380740462,17.51,2646.8,2646.7,0.00211099]
[1645380740665,9.5,2646.6,2645.6,0.00256316]
[1645380740863,5.0,2646.4,2645.4,0.00256316]
[1645380741460,1.07200108,2645.5,2645.4,0.00256316]
[1645380741665,1.07200108,2645.5,2645.1,0.00256316]
[1645380742268,1.07200108,2645.5,2644.9,0.00256316]
[1645380742465,1.07200108,2645.5,2644.7,0.00256316]
[1645380742665,1.07200108,2645.5,2644.6,0.55410003]
[1645380742666,8.5,2645.4,2644.6,0.55410003]
[1645380742908,11.4132,2645.4,2644.7,0.00256316]
[1645380743113,11.4132,2645.4,2644.4,0.00256316]
[1645380743308,1.11475248,2644.5,2644.4,0.00256316]
[1645380743507,1.11475248,2644.5,2643.9,0.00256316]
[1645380743709,3.0328,2644.4,2643.9,0.00256316]
[1645380743912,3.0328,2644.4,2643.7,0.00256316]
[1645380744108,3.0328,2644.4,2643.2,1.00357277]
[1645380744306,3.0328,2644.4,2643.2,1.00613593]
[1645380744508,3.0328,2644.4,2643.4,11.51]
[1645380744813,1.11475248,2644.5,2643.8,0.94363607]
[1645380745212,1.11475248,2644.5,2643.9,0.00256316]
[1645380745908,1.11475248,2644.5,2644.1,0.0023053]
[1645380746963,1.11475248,2644.5,2643.6,0.94595]
[1645380747160,1.11475248,2644.5,2644.2,0.00230526]
[1645380747561,0.91475248,2644.5,2644.2,0.00230526]
[1645380748160,0.91475248,2644.5,2644.0,0.00256316]
[1645380748360,0.91475248,2644.5,2644.2,0.00230524]
[1645380749365,0.91475248,2644.5,2643.7,0.00256316]
[1645380749563,0.91475248,2644.5,2644.2,0.00230524]
[1645380750605,0.91475248,2644.5,2643.8,0.00922235]
[1645380750606,0.91475248,2644.5,2643.8,1.11241931]
[1645380750807,0.91475248,2644.5,2644.2,0.00230524]
[1645380751007,3.6976,2644.9,2644.2,0.00230524]
[1645380751806,3.6976,2644.9,2643.9,0.00256316]
[1645380752008,0.872731,2644.6,2644.4,0.00230517]
[1645380753008,0.872731,2644.6,2643.9,0.00256316]
[1645380753207,0.872731,2644.6,2644.4,0.00230518]
[1645380754266,0.87845225,2643.9,2643.6,0.00256316]
[1645380754666,0.87845225,2643.9,2643.5,1.0287508]
[1645380755063,0.87845225,2643.9,2643.2,0.00256316]
[1645380755271,14.5,2643.8,2642.9,0.58347575]
[1645380755576,0.87845225,2643.9,2643.2,0.00922334]
[1645380755577,5.0,2643.5,2643.2,0.00922334]
[1645380755764,5.0,2643.5,2641.7,0.0464852]
[1645380755765,10.5,2643.3,2641.7,0.0464852]
[1645380755966,3.0479,2643.6,2641.7,0.0464852]
[1645380756168,2.4182,2643.7,2642.0,5.0]
[1645380756368,2.4182,2643.7,2642.8,5.0]
[1645380756369,0.25,2643.7,2642.8,5.0]
[1645380756568,3.12305009,2645.2,2643.0,0.01226999]
[1645380756569,2.348,2644.7,2643.0,0.01226999]
[1645380756766,2.348,2644.7,2643.6,0.0124186]
[1645380756767,2.159,2644.7,2643.6,0.0124186]
[1645380757067,2.348,2645.2,2643.8,11.51]
[1645380757268,2.348,2645.2,2643.8,11.81]
[1645380757269,2.159,2645.2,2643.8,11.81]
[1645380757465,3.5,2645.1,2644.0,11.51]
[1645380757664,3.5,2645.1,2644.0,11.81]
[1645380757917,0.86153926,2645.0,2644.0,2.19136]
[1645380758113,0.86153926,2645.0,2644.0,1.89136]
[1645380759112,0.00130852,2644.6,2644.0,1.89136]
[1645380759317,0.00130852,2644.6,2644.2,1.19077423]
[1645380759613,0.85894685,2645.0,2644.0,1.89136]
[1645380759916,2.159,2645.2,2644.1,0.9457704]
[1645380760113,2.159,2645.2,2644.3,0.94567]
[1645380760313,2.159,2645.2,2644.3,1.54567]
[1645380760912,2.159,2645.2,2644.8,1.03784145]
[1645380761422,0.25,2645.4,2644.8,12.84784145]